[Event "Live Chess"]
[Site "Chess.com"]
[Date "2010.12.10"]
[Round "-"]
[White "vinkos5"]
[Black "hipposcottimus"]
[Result "0-1"]
[CurrentPosition "7k/5B1p/1p3p1B/4R3/1p6/6Q1/P2r1KPP/1R6 w - -"]
[Timezone "UTC"]
[ECO "C20"]
[ECOUrl "https://www.chess.com/openings/Kings-Pawn-Opening-MacLeod-Attack"]
[UTCDate "2010.12.10"]
[UTCTime "01:27:56"]
[WhiteElo "1749"]
[BlackElo "1660"]
[TimeControl "60"]
[Termination "hipposcottimus won on time"]
[StartTime "01:27:56"]
[EndDate "2010.12.10"]
[EndTime "01:29:59"]
[Link "https://www.chess.com/game/live/75757703"]

1. e4 {[%clk 0:01:00]} 1... e5 {[%clk 0:01:00]} 2. c3 {[%clk 0:00:59.4]} 2... Nc6 {[%clk 0:00:59.7]} 3. Bc4 {[%clk 0:00:58.5]} 3... Nf6 {[%clk 0:00:54.6]} 4. Qb3 {[%clk 0:00:57.3]} 4... d5 {[%clk 0:00:52.4]} 5. exd5 {[%clk 0:00:54.9]} 5... Na5 {[%clk 0:00:50.7]} 6. Qa4+ {[%clk 0:00:51.6]} 6... Bd7 {[%clk 0:00:49]} 7. Qxa5 {[%clk 0:00:50.1]} 7... Be7 {[%clk 0:00:45.6]} 8. b4 {[%clk 0:00:45.8]} 8... O-O {[%clk 0:00:43.9]} 9. Qa3 {[%clk 0:00:44.6]} 9... b6 {[%clk 0:00:43.6]} 10. d3 {[%clk 0:00:39.9]} 10... c5 {[%clk 0:00:43.3]} 11. Bb3 {[%clk 0:00:39.3]} 11... cxb4 {[%clk 0:00:42.4]} 12. cxb4 {[%clk 0:00:38.6]} 12... a5 {[%clk 0:00:41.6]} 13. Bd2 {[%clk 0:00:36.7]} 13... axb4 {[%clk 0:00:40]} 14. Qb2 {[%clk 0:00:34.2]} 14... Bb5 {[%clk 0:00:34.9]} 15. Qxe5 {[%clk 0:00:28.9]} 15... Bxd3 {[%clk 0:00:33.9]} 16. Qd4 {[%clk 0:00:28]} 16... Bxb1 {[%clk 0:00:32.9]} 17. Rxb1 {[%clk 0:00:26.6]} 17... Bc5 {[%clk 0:00:31.8]} 18. Qd3 {[%clk 0:00:23.4]} 18... Qe7+ {[%clk 0:00:31.3]} 19. Ne2 {[%clk 0:00:21.9]} 19... Rad8 {[%clk 0:00:30.7]} 20. O-O {[%clk 0:00:20.6]} 20... Nxd5 {[%clk 0:00:29.2]} 21. Bxd5 {[%clk 0:00:17.2]} 21... Qe5 {[%clk 0:00:28.5]} 22. Nf4 {[%clk 0:00:14.3]} 22... g6 {[%clk 0:00:24.1]} 23. Rfe1 {[%clk 0:00:13.5]} 23... g5 {[%clk 0:00:23.4]} 24. Rxe5 {[%clk 0:00:10.8]} 24... Bxf2+ {[%clk 0:00:17.6]} 25. Kxf2 {[%clk 0:00:08.8]} 25... gxf4 {[%clk 0:00:15.8]} 26. Bxf4 {[%clk 0:00:07.4]} 26... Kh8 {[%clk 0:00:15.5]} 27. Qg3 {[%clk 0:00:06.2]} 27... f6 {[%clk 0:00:15.2]} 28. Bh6 {[%clk 0:00:03.7]} 28... Rf7 {[%clk 0:00:13.7]} 29. Bxf7 {[%clk 0:00:01.3]} 29... Rd2+ {[%clk 0:00:11.1]} 0-1

[Event "Live Chess"]
[Site "Chess.com"]
[Date "2010.12.10"]
[Round "-"]
[White "tripp123"]
[Black "hipposcottimus"]
[Result "0-1"]
[CurrentPosition "4q1k1/pp6/5Qp1/8/3P4/3P1P2/3K1P2/6R1 w - -"]
[Timezone "UTC"]
[ECO "D00"]
[ECOUrl "https://www.chess.com/openings/Queens-Pawn-Opening-Levitsky-Attack-2...c6-3.e3"]
[UTCDate "2010.12.10"]
[UTCTime "00:49:44"]
[WhiteElo "1612"]
[BlackElo "1660"]
[TimeControl "60"]
[Termination "hipposcottimus won on time"]
[StartTime "00:49:44"]
[EndDate "2010.12.10"]
[EndTime "00:51:58"]
[Link "https://www.chess.com/game/live/75749433"]

1. d4 {[%clk 0:01:00]} 1... d5 {[%clk 0:01:00]} 2. Bg5 {[%clk 0:00:58.4]} 2... c6 {[%clk 0:00:58.7]} 3. e3 {[%clk 0:00:57.4]} 3... f6 {[%clk 0:00:58.4]} 4. Bh4 {[%clk 0:00:56]} 4... e5 {[%clk 0:00:58]} 5. dxe5 {[%clk 0:00:51]} 5... Nd7 {[%clk 0:00:57.7]} 6. exf6 {[%clk 0:00:49.7]} 6... Ngxf6 {[%clk 0:00:56.2]} 7. Nc3 {[%clk 0:00:47]} 7... Bb4 {[%clk 0:00:55.5]} 8. a3 {[%clk 0:00:45.1]} 8... Bxc3+ {[%clk 0:00:53]} 9. bxc3 {[%clk 0:00:44.4]} 9... O-O {[%clk 0:00:52.7]} 10. Ne2 {[%clk 0:00:43.1]} 10... Ne5 {[%clk 0:00:51.9]} 11. Nd4 {[%clk 0:00:41.1]} 11... Nc4 {[%clk 0:00:50.8]} 12. Qd3 {[%clk 0:00:38.9]} 12... Nb2 {[%clk 0:00:48.9]} 13. Rb1 {[%clk 0:00:36.8]} 13... c5 {[%clk 0:00:45.6]} 14. Nf3 {[%clk 0:00:33.1]} 14... c4 {[%clk 0:00:44.7]} 15. Qd4 {[%clk 0:00:31.4]} 15... Nd3+ {[%clk 0:00:41.4]} 16. Bxd3 {[%clk 0:00:29.5]} 16... cxd3 {[%clk 0:00:41.2]} 17. cxd3 {[%clk 0:00:28.8]} 17... Bg4 {[%clk 0:00:36.1]} 18. h3 {[%clk 0:00:24.7]} 18... Bxf3 {[%clk 0:00:35.3]} 19. gxf3 {[%clk 0:00:23.9]} 19... Qd6 {[%clk 0:00:33.1]} 20. Rg1 {[%clk 0:00:22.9]} 20... Qxa3 {[%clk 0:00:28.4]} 21. Bxf6 {[%clk 0:00:19.9]} 21... Rxf6 {[%clk 0:00:26.5]} 22. Qxf6 {[%clk 0:00:18.7]} 22... g6 {[%clk 0:00:16.7]} 23. h4 {[%clk 0:00:16]} 23... Qa5 {[%clk 0:00:14.1]} 24. Rc1 {[%clk 0:00:13.6]} 24... d4 {[%clk 0:00:13.1]} 25. exd4 {[%clk 0:00:11.8]} 25... Re8+ {[%clk 0:00:11]} 26. Kd2 {[%clk 0:00:10.2]} 26... Qa2+ {[%clk 0:00:09.7]} 27. Rc2 {[%clk 0:00:08.7]} 27... Re2+ {[%clk 0:00:08.4]} 28. Kxe2 {[%clk 0:00:06]} 28... Qxc2+ {[%clk 0:00:08.1]} 29. Ke3 {[%clk 0:00:06]} 29... Qxc3 {[%clk 0:00:04.8]} 30. h5 {[%clk 0:00:04.9]} 30... Qc8 {[%clk 0:00:01.8]} 31. hxg6 {[%clk 0:00:03.9]} 31... Qe8+ {[%clk 0:00:01.5]} 32. Kd2 {[%clk 0:00:01.9]} 32... hxg6 {[%clk 0:00:00.2]} 0-1

[Event "Live Chess"]
[Site "Chess.com"]
[Date "2010.12.10"]
[Round "-"]
[White "ulflki"]
[Black "hipposcottimus"]
[Result "0-1"]
[CurrentPosition "2kr2r1/p1p4p/1p6/8/1P2P3/P3Q1PK/2P4P/5q2 w - -"]
[Timezone "UTC"]
[ECO "A00"]
[ECOUrl "https://www.chess.com/openings/Kings-Fianchetto-Opening-1...e5-2.Bg2-d5"]
[UTCDate "2010.12.10"]
[UTCTime "00:46:14"]
[WhiteElo "1581"]
[BlackElo "1653"]
[TimeControl "60"]
[Termination "hipposcottimus won on time"]
[StartTime "00:46:14"]
[EndDate "2010.12.10"]
[EndTime "00:48:29"]
[Link "https://www.chess.com/game/live/75748659"]

1. g3 {[%clk 0:01:00]} 1... e5 {[%clk 0:01:00]} 2. Bg2 {[%clk 0:00:59.7]} 2... d5 {[%clk 0:00:59.6]} 3. b3 {[%clk 0:00:59.3]} 3... e4 {[%clk 0:00:59.2]} 4. Bb2 {[%clk 0:00:59]} 4... f5 {[%clk 0:00:58.7]} 5. d3 {[%clk 0:00:58.7]} 5... Qe7 {[%clk 0:00:56.9]} 6. f3 {[%clk 0:00:58.2]} 6... Nf6 {[%clk 0:00:56.6]} 7. fxe4 {[%clk 0:00:57.3]} 7... dxe4 {[%clk 0:00:54.4]} 8. dxe4 {[%clk 0:00:56.6]} 8... fxe4 {[%clk 0:00:53.3]} 9. Nc3 {[%clk 0:00:56]} 9... Qb4 {[%clk 0:00:50.6]} 10. a3 {[%clk 0:00:53.7]} 10... Qa5 {[%clk 0:00:49.8]} 11. b4 {[%clk 0:00:52.6]} 11... Qe5 {[%clk 0:00:48.9]} 12. e3 {[%clk 0:00:47.1]} 12... Bg4 {[%clk 0:00:46.3]} 13. Qd2 {[%clk 0:00:43.8]} 13... Nc6 {[%clk 0:00:44.3]} 14. Nge2 {[%clk 0:00:40.5]} 14... Bd6 {[%clk 0:00:38.5]} 15. O-O {[%clk 0:00:39.9]} 15... O-O-O {[%clk 0:00:37.3]} 16. Nd5 {[%clk 0:00:35.9]} 16... Nh5 {[%clk 0:00:29.6]} 17. Bxe5 {[%clk 0:00:34.1]} 17... Bxe5 {[%clk 0:00:28.2]} 18. Ne7+ {[%clk 0:00:31.8]} 18... Nxe7 {[%clk 0:00:26.1]} 19. Qc1 {[%clk 0:00:28.8]} 19... Bxe2 {[%clk 0:00:25.4]} 20. Re1 {[%clk 0:00:27.2]} 20... Bf3 {[%clk 0:00:24.5]} 21. Bxf3 {[%clk 0:00:26.1]} 21... exf3 {[%clk 0:00:24.2]} 22. Rf1 {[%clk 0:00:25.5]} 22... Rhf8 {[%clk 0:00:22.2]} 23. e4 {[%clk 0:00:23.7]} 23... Bxa1 {[%clk 0:00:20.9]} 24. Qxa1 {[%clk 0:00:22]} 24... Ng6 {[%clk 0:00:20.6]} 25. Qe1 {[%clk 0:00:20.9]} 25... Ne5 {[%clk 0:00:20]} 26. Qf2 {[%clk 0:00:19.7]} 26... Ng4 {[%clk 0:00:18.5]} 27. Qc5 {[%clk 0:00:16.1]} 27... f2+ {[%clk 0:00:17.7]} 28. Kg2 {[%clk 0:00:15.2]} 28... b6 {[%clk 0:00:14.3]} 29. Qxh5 {[%clk 0:00:13.8]} 29... Ne3+ {[%clk 0:00:10.9]} 30. Kh3 {[%clk 0:00:11.4]} 30... Nxf1 {[%clk 0:00:10.6]} 31. Qe2 {[%clk 0:00:08.9]} 31... Ne3 {[%clk 0:00:10.3]} 32. Qxe3 {[%clk 0:00:07.1]} 32... f1=Q+ {[%clk 0:00:09.1]} 33. Kh4 {[%clk 0:00:05.3]} 33... g5+ {[%clk 0:00:06.8]} 34. Kxg5 {[%clk 0:00:03.9]} 34... Rg8+ {[%clk 0:00:05.3]} 35. Kh4 {[%clk 0:00:03.4]} 35... Qh1 {[%clk 0:00:04.2]} 36. Kh3 {[%clk 0:00:00.5]} 36... Qf1+ {[%clk 0:00:03]} 0-1

[Event "Live Chess"]
[Site "Chess.com"]
[Date "2010.12.10"]
[Round "-"]
[White "hipposcottimus"]
[Black "vinkos5"]
[Result "0-1"]
[CurrentPosition "3r4/1p4kp/p2B2p1/3R4/8/4b3/PP4PP/3R3K w - -"]
[Timezone "UTC"]
[ECO "B22"]
[ECOUrl "https://www.chess.com/openings/Alapin-Sicilian-Defense-2...e6-3.d4"]
[UTCDate "2010.12.10"]
[UTCTime "00:43:30"]
[WhiteElo "1646"]
[BlackElo "1749"]
[TimeControl "60"]
[Termination "vinkos5 won on time"]
[StartTime "00:43:30"]
[EndDate "2010.12.10"]
[EndTime "00:45:37"]
[Link "https://www.chess.com/game/live/75748057"]

1. e4 {[%clk 0:01:00]} 1... e6 {[%clk 0:01:00]} 2. d4 {[%clk 0:00:58.3]} 2... c5 {[%clk 0:00:59.7]} 3. c3 {[%clk 0:00:56.1]} 3... cxd4 {[%clk 0:00:59]} 4. cxd4 {[%clk 0:00:55.8]} 4... d6 {[%clk 0:00:58.4]} 5. Nf3 {[%clk 0:00:54.2]} 5... Nc6 {[%clk 0:00:56.7]} 6. Nc3 {[%clk 0:00:53.9]} 6... Bd7 {[%clk 0:00:56.1]} 7. Bb5 {[%clk 0:00:52.4]} 7... Qb6 {[%clk 0:00:53.2]} 8. O-O {[%clk 0:00:49.3]} 8... a6 {[%clk 0:00:52.1]} 9. Ba4 {[%clk 0:00:48.3]} 9... Qc7 {[%clk 0:00:50.4]} 10. d5 {[%clk 0:00:44.5]} 10... Ne5 {[%clk 0:00:46.2]} 11. Nxe5 {[%clk 0:00:40.4]} 11... dxe5 {[%clk 0:00:44.6]} 12. Bxd7+ {[%clk 0:00:34.7]} 12... Qxd7 {[%clk 0:00:42.9]} 13. f4 {[%clk 0:00:29.4]} 13... exf4 {[%clk 0:00:40.1]} 14. Bxf4 {[%clk 0:00:27.4]} 14... Bd6 {[%clk 0:00:39.7]} 15. e5 {[%clk 0:00:25.6]} 15... Bc5+ {[%clk 0:00:37.6]} 16. Kh1 {[%clk 0:00:23.9]} 16... exd5 {[%clk 0:00:36.8]} 17. Nxd5 {[%clk 0:00:21.9]} 17... Rd8 {[%clk 0:00:33.3]} 18. e6 {[%clk 0:00:18.1]} 18... fxe6 {[%clk 0:00:31.8]} 19. Nc7+ {[%clk 0:00:16.3]} 19... Qxc7 {[%clk 0:00:30.3]} 20. Bxc7 {[%clk 0:00:09.3]} 20... Rxd1 {[%clk 0:00:28.6]} 21. Raxd1 {[%clk 0:00:09]} 21... Ne7 {[%clk 0:00:27.9]} 22. Rfe1 {[%clk 0:00:08.7]} 22... O-O {[%clk 0:00:25.8]} 23. Rxe6 {[%clk 0:00:08]} 23... Nf5 {[%clk 0:00:22.6]} 24. Re5 {[%clk 0:00:05.4]} 24... Be3 {[%clk 0:00:13]} 25. Bd6 {[%clk 0:00:04.6]} 25... Rd8 {[%clk 0:00:08.3]} 26. Rxf5 {[%clk 0:00:01.7]} 26... g6 {[%clk 0:00:07.3]} 27. Rfd5 {[%clk 0:00:00.6]} 27... Kg7 {[%clk 0:00:06.5]} 0-1

[Event "Live Chess"]
[Site "Chess.com"]
[Date "2010.12.10"]
[Round "-"]
[White "vitosha"]
[Black "hipposcottimus"]
[Result "0-1"]
[CurrentPosition "5r1k/pr4pp/1p6/2p5/8/P2P1pqP/1P1B4/R1Q1R1K1 w - -"]
[Timezone "UTC"]
[ECO "A00"]
[ECOUrl "https://www.chess.com/openings/Vant-Kruijs-Opening-1...e5"]
[UTCDate "2010.12.10"]
[UTCTime "00:40:22"]
[WhiteElo "1409"]
[BlackElo "1646"]
[TimeControl "60"]
[Termination "hipposcottimus won on time"]
[StartTime "00:40:22"]
[EndDate "2010.12.10"]
[EndTime "00:42:05"]
[Link "https://www.chess.com/game/live/75747357"]

1. e3 {[%clk 0:01:00]} 1... e5 {[%clk 0:01:00]} 2. Be2 {[%clk 0:00:59.6]} 2... d5 {[%clk 0:00:58.8]} 3. h3 {[%clk 0:00:59.2]} 3... d4 {[%clk 0:00:57.9]} 4. d3 {[%clk 0:00:58.4]} 4... dxe3 {[%clk 0:00:56.9]} 5. Bxe3 {[%clk 0:00:56.1]} 5... f5 {[%clk 0:00:53.6]} 6. a3 {[%clk 0:00:55.7]} 6... f4 {[%clk 0:00:52.7]} 7. Bd2 {[%clk 0:00:53.6]} 7... Nf6 {[%clk 0:00:52.3]} 8. Nf3 {[%clk 0:00:52.4]} 8... Nc6 {[%clk 0:00:52]} 9. Nc3 {[%clk 0:00:51.1]} 9... Bd6 {[%clk 0:00:51.7]} 10. Na2 {[%clk 0:00:48.6]} 10... Nd4 {[%clk 0:00:51]} 11. Nxd4 {[%clk 0:00:43.1]} 11... exd4 {[%clk 0:00:50.7]} 12. Bf3 {[%clk 0:00:40.6]} 12... O-O {[%clk 0:00:50.4]} 13. O-O {[%clk 0:00:35.2]} 13... Rb8 {[%clk 0:00:49.9]} 14. Nb4 {[%clk 0:00:31.2]} 14... b6 {[%clk 0:00:49]} 15. Nd5 {[%clk 0:00:28.8]} 15... c5 {[%clk 0:00:46.1]} 16. Nxf6+ {[%clk 0:00:26]} 16... Qxf6 {[%clk 0:00:45.8]} 17. c3 {[%clk 0:00:22.8]} 17... Bb7 {[%clk 0:00:44.9]} 18. cxd4 {[%clk 0:00:20.4]} 18... Qxd4 {[%clk 0:00:37.2]} 19. Qb3+ {[%clk 0:00:18.2]} 19... Kh8 {[%clk 0:00:33.1]} 20. Qc2 {[%clk 0:00:15.7]} 20... Qf6 {[%clk 0:00:31.8]} 21. Qc1 {[%clk 0:00:14.3]} 21... Qg6 {[%clk 0:00:30.4]} 22. Bxb7 {[%clk 0:00:12]} 22... Rxb7 {[%clk 0:00:29.8]} 23. Re1 {[%clk 0:00:06.7]} 23... f3 {[%clk 0:00:29.4]} 24. g3 {[%clk 0:00:05.1]} 24... Bxg3 {[%clk 0:00:27.1]} 25. fxg3 {[%clk 0:00:03.2]} 25... Qxg3+ {[%clk 0:00:26.4]} 0-1

[Event "Live Chess"]
[Site "Chess.com"]
[Date "2010.12.10"]
[Round "-"]
[White "hipposcottimus"]
[Black "Ari123"]
[Result "1-0"]
[CurrentPosition "r3qrk1/ppp2p1p/4p1p1/8/2n1B3/1P3PB1/P4P1P/Q5RK b - -"]
[Timezone "UTC"]
[ECO "B06"]
[ECOUrl "https://www.chess.com/openings/Modern-Defense-with-1-e4-2.Nf3"]
[UTCDate "2010.12.10"]
[UTCTime "00:38:47"]
[WhiteElo "1646"]
[BlackElo "1546"]
[TimeControl "60"]
[Termination "hipposcottimus won on time"]
[StartTime "00:38:47"]
[EndDate "2010.12.10"]
[EndTime "00:39:45"]
[Link "https://www.chess.com/game/live/75746993"]

1. e4 {[%clk 0:01:00]} 1... g6 {[%clk 0:01:00]} 2. Nf3 {[%clk 0:00:59.5]} 2... Bg7 {[%clk 0:01:00]} 3. e5 {[%clk 0:00:58.4]} 3... e6 {[%clk 0:01:00]} 4. d4 {[%clk 0:00:58]} 4... Ne7 {[%clk 0:01:00]} 5. c4 {[%clk 0:00:57.4]} 5... O-O {[%clk 0:00:58.6]} 6. Nc3 {[%clk 0:00:57.1]} 6... d6 {[%clk 0:00:57.8]} 7. Be2 {[%clk 0:00:56.9]} 7... dxe5 {[%clk 0:00:56.9]} 8. dxe5 {[%clk 0:00:56.7]} 8... Qe8 {[%clk 0:00:55.3]} 9. O-O {[%clk 0:00:55.4]} 9... Bd7 {[%clk 0:00:54.7]} 10. Bd3 {[%clk 0:00:55]} 10... Nbc6 {[%clk 0:00:54.1]} 11. Bf4 {[%clk 0:00:54.6]} 11... Nb4 {[%clk 0:00:50.8]} 12. Re1 {[%clk 0:00:53.6]} 12... Bc6 {[%clk 0:00:48.5]} 13. Bc2 {[%clk 0:00:52]} 13... Bxf3 {[%clk 0:00:45.5]} 14. gxf3 {[%clk 0:00:51.7]} 14... Nec6 {[%clk 0:00:41.8]} 15. Kh1 {[%clk 0:00:51.1]} 15... Na6 {[%clk 0:00:40.2]} 16. Rg1 {[%clk 0:00:50.1]} 16... Nc5 {[%clk 0:00:39.2]} 17. Bg3 {[%clk 0:00:49.8]} 17... Nxe5 {[%clk 0:00:36.6]} 18. Ne4 {[%clk 0:00:48.9]} 18... Nxe4 {[%clk 0:00:32.4]} 19. Bxe4 {[%clk 0:00:47.2]} 19... Nxc4 {[%clk 0:00:31.9]} 20. b3 {[%clk 0:00:45.8]} 20... Bxa1 {[%clk 0:00:28.2]} 21. Qxa1 {[%clk 0:00:44.3]} 1-0

[Event "Live Chess"]
[Site "Chess.com"]
[Date "2010.12.10"]
[Round "-"]
[White "Ari123"]
[Black "hipposcottimus"]
[Result "0-1"]
[CurrentPosition "5rk1/4Qpp1/q7/7p/8/2P1P1P1/P1P1KP2/4R1R1 w - -"]
[Timezone "UTC"]
[ECO "A00"]
[ECOUrl "https://www.chess.com/openings/Kings-Fianchetto-Opening-1...e5-2.Bg2-d5"]
[UTCDate "2010.12.10"]
[UTCTime "00:36:10"]
[WhiteElo "1552"]
[BlackElo "1640"]
[TimeControl "60"]
[Termination "hipposcottimus won on time"]
[StartTime "00:36:10"]
[EndDate "2010.12.10"]
[EndTime "00:38:12"]
[Link "https://www.chess.com/game/live/75746530"]

1. g3 {[%clk 0:01:00]} 1... e5 {[%clk 0:01:00]} 2. Bg2 {[%clk 0:01:00]} 2... d5 {[%clk 0:00:59.6]} 3. e3 {[%clk 0:01:00]} 3... e4 {[%clk 0:00:59.3]} 4. Ne2 {[%clk 0:00:57.5]} 4... Nf6 {[%clk 0:00:59.1]} 5. O-O {[%clk 0:00:57.1]} 5... Bg4 {[%clk 0:00:55.7]} 6. d3 {[%clk 0:00:57.1]} 6... Be7 {[%clk 0:00:52.9]} 7. dxe4 {[%clk 0:00:55.9]} 7... dxe4 {[%clk 0:00:52.6]} 8. Nbc3 {[%clk 0:00:53.5]} 8... Bf3 {[%clk 0:00:44.3]} 9. Bxf3 {[%clk 0:00:50.9]} 9... exf3 {[%clk 0:00:44]} 10. Nd4 {[%clk 0:00:48.5]} 10... Nd5 {[%clk 0:00:41.3]} 11. Qxf3 {[%clk 0:00:45.3]} 11... Nxc3 {[%clk 0:00:39.9]} 12. bxc3 {[%clk 0:00:44.3]} 12... O-O {[%clk 0:00:39.2]} 13. Qxb7 {[%clk 0:00:42]} 13... Nd7 {[%clk 0:00:38.2]} 14. Nc6 {[%clk 0:00:40]} 14... Qe8 {[%clk 0:00:34.6]} 15. Qxc7 {[%clk 0:00:36]} 15... Rc8 {[%clk 0:00:30.2]} 16. Nxe7+ {[%clk 0:00:29.2]} 16... Qxe7 {[%clk 0:00:28.1]} 17. Qxa7 {[%clk 0:00:28.2]} 17... Qe6 {[%clk 0:00:25]} 18. Ba3 {[%clk 0:00:25.5]} 18... Ne5 {[%clk 0:00:24.6]} 19. Bxf8 {[%clk 0:00:23.9]} 19... Nf3+ {[%clk 0:00:24.3]} 20. Kg2 {[%clk 0:00:21.9]} 20... Qe4 {[%clk 0:00:22]} 21. Qe7 {[%clk 0:00:09.1]} 21... Nh4+ {[%clk 0:00:19.6]} 22. Kh3 {[%clk 0:00:07.4]} 22... Qg2+ {[%clk 0:00:18.7]} 23. Kxh4 {[%clk 0:00:06.3]} 23... Qxh2+ {[%clk 0:00:18.4]} 24. Kg4 {[%clk 0:00:05]} 24... h5+ {[%clk 0:00:16.7]} 25. Kf3 {[%clk 0:00:03.9]} 25... Rxf8 {[%clk 0:00:14.1]} 26. Ke2 {[%clk 0:00:02.9]} 26... Qg2 {[%clk 0:00:13.1]} 27. Rae1 {[%clk 0:00:01.5]} 27... Qa8 {[%clk 0:00:12]} 28. Rg1 {[%clk 0:00:00.5]} 28... Qa6+ {[%clk 0:00:11.6]} 0-1

[Event "Live Chess"]
[Site "Chess.com"]
[Date "2010.12.10"]
[Round "-"]
[White "hipposcottimus"]
[Black "adnara"]
[Result "0-1"]
[CurrentPosition "6k1/p6p/1p4p1/2p5/4B3/5P1K/7P/6q1 w - -"]
[Timezone "UTC"]
[ECO "B06"]
[ECOUrl "https://www.chess.com/openings/Modern-Defense-Three-Pawns-Attack"]
[UTCDate "2010.12.10"]
[UTCTime "00:33:10"]
[WhiteElo "1634"]
[BlackElo "1560"]
[TimeControl "60"]
[Termination "adnara won on time"]
[StartTime "00:33:10"]
[EndDate "2010.12.10"]
[EndTime "00:35:27"]
[Link "https://www.chess.com/game/live/75745782"]

1. e4 {[%clk 0:01:00]} 1... g6 {[%clk 0:01:00]} 2. d4 {[%clk 0:00:58.5]} 2... Bg7 {[%clk 0:01:00]} 3. f4 {[%clk 0:00:57.2]} 3... e6 {[%clk 0:01:00]} 4. e5 {[%clk 0:00:56.6]} 4... Ne7 {[%clk 0:01:00]} 5. Nf3 {[%clk 0:00:56.3]} 5... d6 {[%clk 0:01:00]} 6. c4 {[%clk 0:00:55.9]} 6... Nd7 {[%clk 0:00:59.2]} 7. Nc3 {[%clk 0:00:54.2]} 7... O-O {[%clk 0:00:58.1]} 8. Be2 {[%clk 0:00:52.5]} 8... b6 {[%clk 0:00:57.5]} 9. O-O {[%clk 0:00:49]} 9... Bb7 {[%clk 0:00:57.1]} 10. Be3 {[%clk 0:00:45.4]} 10... dxe5 {[%clk 0:00:56]} 11. dxe5 {[%clk 0:00:42.8]} 11... f6 {[%clk 0:00:55.3]} 12. exf6 {[%clk 0:00:37.6]} 12... Nxf6 {[%clk 0:00:54.1]} 13. Bd4 {[%clk 0:00:37.3]} 13... c5 {[%clk 0:00:40.6]} 14. Be5 {[%clk 0:00:36.1]} 14... Nc6 {[%clk 0:00:37.3]} 15. Qe1 {[%clk 0:00:25.8]} 15... Nxe5 {[%clk 0:00:35.4]} 16. fxe5 {[%clk 0:00:25.5]} 16... Nd7 {[%clk 0:00:31.2]} 17. Bd3 {[%clk 0:00:19.2]} 17... Bxf3 {[%clk 0:00:24.5]} 18. Rxf3 {[%clk 0:00:17.9]} 18... Rxf3 {[%clk 0:00:23.3]} 19. gxf3 {[%clk 0:00:16.5]} 19... Nxe5 {[%clk 0:00:20.5]} 20. Qxe5 {[%clk 0:00:13.9]} 20... Bxe5 {[%clk 0:00:18.8]} 21. Be4 {[%clk 0:00:11.8]} 21... Bxc3 {[%clk 0:00:17.3]} 22. bxc3 {[%clk 0:00:10.3]} 22... Rb8 {[%clk 0:00:15.2]} 23. Rf1 {[%clk 0:00:09.9]} 23... Qg5+ {[%clk 0:00:13.6]} 24. Kh1 {[%clk 0:00:08]} 24... Rf8 {[%clk 0:00:12.4]} 25. Rg1 {[%clk 0:00:07.7]} 25... Qf4 {[%clk 0:00:10.8]} 26. Rg4 {[%clk 0:00:05.8]} 26... Qe3 {[%clk 0:00:09.5]} 27. Kg2 {[%clk 0:00:04.8]} 27... Qe2+ {[%clk 0:00:08.3]} 28. Kg3 {[%clk 0:00:04.2]} 28... Qxa2 {[%clk 0:00:07.7]} 29. Rf4 {[%clk 0:00:03.6]} 29... Rxf4 {[%clk 0:00:06]} 30. Kxf4 {[%clk 0:00:03.4]} 30... Qd2+ {[%clk 0:00:04.6]} 31. Ke5 {[%clk 0:00:03.1]} 31... Qxc3+ {[%clk 0:00:03.8]} 32. Kxe6 {[%clk 0:00:02.8]} 32... Qxc4+ {[%clk 0:00:03.1]} 33. Ke5 {[%clk 0:00:02.6]} 33... Qc3+ {[%clk 0:00:02.1]} 34. Kf4 {[%clk 0:00:02.3]} 34... Qc2 {[%clk 0:00:01.1]} 35. Kg3 {[%clk 0:00:02.1]} 35... Qd2 {[%clk 0:00:01.1]} 36. Kg4 {[%clk 0:00:01]} 36... Qe1 {[%clk 0:00:01.1]} 37. Kh3 {[%clk 0:00:00.6]} 37... Qg1 {[%clk 0:00:01.1]} 0-1